[Event "Norway Chess 2015 Blitz"]
[Site "Stavanger"]
[Date "2015.06.15"]
[Round "7"]
[White "Caruana, Fabiano"]
[Black "Grischuk, Alexander"]
[Result "1-0"]
[ECO "B31"]
[WhiteElo "2679"]
[BlackElo "2839"]
[Annotator ""]
[PlyCount "103"]
[EventDate "2015.??.??"]
[EventCountry "NOR"]
[TimeControl "180+2"]

1. e4 {[%emt 0:00:00]} c5 {[%emt 0:00:00]} 2. Nf3 {[%emt 0:00:01]} Nc6 {[%emt
0:00:00]} 3. Bb5 {[%emt 0:00:01]} g6 {[%emt 0:00:02]} 4. Bxc6 {[%emt 0:00:02]}
bxc6 {[%emt 0:00:01]} 5. O-O {[%emt 0:00:07]} Bg7 {[%emt 0:00:01]} 6. Re1 {
[%emt 0:00:02]} Rb8 {[%emt 0:00:02]} 7. c3 {[%emt 0:00:12]} Nf6 {[%emt 0:00:02]
} 8. d4 {[%emt 0:00:05]} cxd4 {[%emt 0:00:03]} 9. cxd4 {[%emt 0:00:02]} O-O {
[%emt 0:00:03]} 10. Nc3 {[%emt 0:00:01]} d6 {[%emt 0:00:02]} 11. h3 {[%emt 0:
00:03]} Nd7 {[%emt 0:00:04]} 12. b3 {[%emt 0:00:04]} c5 {[%emt 0:00:01]} 13.
Be3 {[%emt 0:00:03]} Bb7 {[%emt 0:00:03]} 14. Rc1 {[%emt 0:00:04]} Rc8 {[%emt
0:00:05]} 15. Qd2 {[%emt 0:00:09]} Re8 {[%emt 0:00:02]} 16. dxc5 {[%emt 0:00:
23]} Nxc5 {[%emt 0:00:02]} 17. Bd4 {[%emt 0:00:01]} Bf8 {[%emt 0:00:03]} 18.
Qe3 {[%emt 0:00:08]} a5 {[%emt 0:00:46]} 19. Nd5 {[%emt 0:00:02]} Ba8 {[%emt 0:
01:33]} 20. Red1 {[%emt 0:00:52]} Nd7 {[%emt 0:00:14]} 21. Rxc8 {[%emt 0:00:03]
} Qxc8 {[%emt 0:00:01]} 22. Rc1 {[%emt 0:00:01]} Qb8 {[%emt 0:00:01]} 23. Ba7 {
[%emt 0:00:11]} Qd8 {[%emt 0:00:20]} 24. Nc7 {[%emt 0:00:01]} Nf6 {[%emt 0:00:
05]} 25. Nxe8 {[%emt 0:00:20]} Qxe8 {[%emt 0:00:01]} 26. Nd2 {[%emt 0:00:04]}
h5 {[%emt 0:00:04]} 27. Qd3 {[%emt 0:00:20]} Kh7 {[%emt 0:00:07]} 28. Be3 {
[%emt 0:00:06]} Bg7 {[%emt 0:00:03]} 29. Rc7 {[%emt 0:00:02]} d5 {[%emt 0:00:
04]} 30. e5 {[%emt 0:00:03]} Ne4 {[%emt 0:00:01]} 31. Nxe4 {[%emt 0:00:02]}
dxe4 {[%emt 0:00:01]} 32. Qd7 {[%emt 0:00:06]} Qb8 {[%emt 0:00:02]} 33. Qxe7 {
[%emt 0:00:03]} Bd5 {[%emt 0:00:01]} 34. Qc5 {[%emt 0:00:07]} Be6 {[%emt 0:00:
01]} 35. Qxa5 {[%emt 0:00:02]} Qd8 {[%emt 0:00:01]} 36. Qc3 {[%emt 0:00:07]} h4
{[%emt 0:00:03]} 37. Kh2 {[%emt 0:00:06]} g5 {[%emt 0:00:04]} 38. Rc5 {[%emt 0:
00:05]} g4 {[%emt 0:00:02]} 39. hxg4 {[%emt 0:00:01]} Bxg4 {[%emt 0:00:01]} 40.
Qd4 {[%emt 0:00:00]} Qa8 {[%emt 0:00:01]} 41. Rc4 {[%emt 0:00:03]} Bf5 {[%emt
0:00:02]} 42. Bf4 {[%emt 0:00:01]} Qxa2 {[%emt 0:00:01]} 43. Qe3 {[%emt 0:00:
01]} Qa1 {[%emt 0:00:04]} 44. Rc1 {[%emt 0:00:02]} Qb2 {[%emt 0:00:01]} 45. Rc7
{[%emt 0:00:01]} Bg6 {[%emt 0:00:01]} 46. e6 {[%emt 0:00:02]} fxe6 {[%emt 0:00:
01]} 47. Qa7 {[%emt 0:00:02]} Kg8 {[%emt 0:00:04]} 48. Qb8+ {[%emt 0:00:02]}
Kh7 {[%emt 0:00:01]} 49. Qb7 {[%emt 0:00:02]} Kg8 {[%emt 0:00:01]} 50. Qc8+ {
[%emt 0:00:03]} Kh7 {[%emt 0:00:01]} 51. Qxe6 {[%emt 0:00:02]} e3 {[%emt 0:00:
07]} 52. Be5 {[%emt 0:00:05]} 1-0

[Event "Norway Chess 2015 Blitz"]
[Site "Stavanger"]
[Date "2015.06.15"]
[Round "7"]
[White "Giri, Anish"]
[Black "Topalov, Veselin"]
[Result "1/2-1/2"]
[ECO "C00"]
[WhiteElo "2771"]
[BlackElo "2641"]
[Annotator ""]
[PlyCount "90"]
[EventDate "2015.??.??"]
[EventCountry "NOR"]
[TimeControl "180+2"]

1. e4 {[%emt 0:00:00]} e6 {[%emt 0:00:00]} 2. d3 {[%emt 0:00:01]} c5 {[%emt 0:
00:00]} 3. g3 {[%emt 0:00:03]} Nc6 {[%emt 0:00:01]} 4. Bg2 {[%emt 0:00:01]} g6
{[%emt 0:00:02]} 5. Nf3 {[%emt 0:00:04]} Bg7 {[%emt 0:00:01]} 6. O-O {[%emt 0:
00:01]} Nge7 {[%emt 0:00:02]} 7. c3 {[%emt 0:00:03]} O-O {[%emt 0:00:04]} 8.
Re1 {[%emt 0:00:01]} e5 {[%emt 0:00:10]} 9. Na3 {[%emt 0:00:04]} d6 {[%emt 0:
00:01]} 10. Nc2 {[%emt 0:00:05]} h6 {[%emt 0:00:05]} 11. a3 {[%emt 0:00:08]}
Be6 {[%emt 0:00:13]} 12. b4 {[%emt 0:00:01]} b6 {[%emt 0:00:03]} 13. b5 {[%emt
0:00:04]} Na5 {[%emt 0:00:02]} 14. c4 {[%emt 0:00:07]} Nb3 {[%emt 0:00:11]} 15.
Rb1 {[%emt 0:00:00]} Nxc1 {[%emt 0:00:02]} 16. Qxc1 {[%emt 0:00:01]} Qd7 {
[%emt 0:00:04]} 17. Ne3 {[%emt 0:00:02]} Bh3 {[%emt 0:00:12]} 18. Nd5 {[%emt 0:
00:02]} Nxd5 19. cxd5 {[%emt 0:00:10]} Kh7 {[%emt 0:00:12]} 20. Nd2 {[%emt 0:
00:12]} Bxg2 {[%emt 0:00:10]} 21. Kxg2 {[%emt 0:00:01]} f5 {[%emt 0:00:01]} 22.
f3 {[%emt 0:00:06]} Rf7 {[%emt 0:00:03]} 23. Nc4 {[%emt 0:00:04]} Raf8 {[%emt
0:00:02]} 24. Rf1 {[%emt 0:00:00]} h5 {[%emt 0:00:02]} 25. Qd1 {[%emt 0:00:01]}
Bh6 {[%emt 0:00:01]} 26. Rb2 {[%emt 0:00:02]} h4 {[%emt 0:00:04]} 27. a4 {
[%emt 0:00:04]} Qe7 {[%emt 0:00:03]} 28. Kg1 {[%emt 0:00:16]} Qd8 {[%emt 0:00:
19]} 29. Rg2 {[%emt 0:00:07]} Kg7 {[%emt 0:00:09]} 30. Qe2 {[%emt 0:00:22]} Bg5
{[%emt 0:00:11]} 31. f4 {[%emt 0:00:35]} fxe4 {[%emt 0:00:08]} 32. dxe4 {[%emt
0:00:01]} h3 {[%emt 0:00:19]} 33. Rgf2 {[%emt 0:00:02]} exf4 {[%emt 0:00:01]}
34. Qg4 {[%emt 0:00:09]} fxg3 {[%emt 0:00:06]} 35. Rxf7+ {[%emt 0:00:03]} Rxf7
{[%emt 0:00:00]} 36. Rxf7+ {[%emt 0:00:02]} Kxf7 {[%emt 0:00:01]} 37. Qxg3 {
[%emt 0:00:29]} Qf6 {[%emt 0:00:03]} 38. Nxd6+ {[%emt 0:00:07]} Kf8 {[%emt 0:
00:08]} 39. e5 {[%emt 0:00:02]} Qf4 {[%emt 0:00:00]} 40. Qxh3 {[%emt 0:00:20]}
Qd4+ {[%emt 0:00:31]} 41. Kf1 {[%emt 0:00:08]} Qd1+ {[%emt 0:00:15]} 42. Kf2 {
[%emt 0:00:03]} Qd2+ {[%emt 0:00:01]} 43. Kf1 {[%emt 0:00:02]} Qd1+ {[%emt 0:
00:02]} 44. Kf2 {[%emt 0:00:01]} Qd2+ 45. Kf1 Qd1+ {[%emt 0:00:08]} 1/2-1/2

[Event "Norway Chess 2015 Blitz"]
[Site "Stavanger"]
[Date "2015.06.15"]
[Round "7"]
[White "Vachier-Lagrave, Maxime"]
[Black "Hammer, Jon Ludvig"]
[Result "1-0"]
[ECO "A06"]
[WhiteElo "2886"]
[BlackElo "2648"]
[Annotator ""]
[PlyCount "65"]
[EventDate "2015.??.??"]
[EventCountry "NOR"]
[TimeControl "180+2"]

1. Nf3 {[%emt 0:00:00]} d5 {[%emt 0:00:00]} 2. g3 {[%emt 0:00:01]} g6 {[%emt 0:
00:00]} 3. Bg2 {[%emt 0:00:01]} Bg7 {[%emt 0:00:01]} 4. O-O {[%emt 0:00:02]} e5
{[%emt 0:00:00]} 5. d3 {[%emt 0:00:01]} Ne7 {[%emt 0:00:02]} 6. e4 {[%emt 0:00:
02]} O-O {[%emt 0:00:05]} 7. exd5 {[%emt 0:00:01]} Nxd5 {[%emt 0:00:02]} 8. Nc3
{[%emt 0:00:01]} Nb6 {[%emt 0:00:04]} 9. a4 {[%emt 0:00:09]} a5 {[%emt 0:00:08]
} 10. Bg5 {[%emt 0:00:04]} f6 {[%emt 0:00:10]} 11. Be3 {[%emt 0:00:02]} Nc6 {
[%emt 0:00:01]} 12. d4 {[%emt 0:00:30]} Nc4 {[%emt 0:00:26]} 13. dxe5 {[%emt 0:
00:02]} Qxd1 {[%emt 0:00:01]} 14. Raxd1 {[%emt 0:00:01]} Nxb2 {[%emt 0:00:02]}
15. Rb1 {[%emt 0:00:09]} Nc4 {[%emt 0:00:02]} 16. Bc5 {[%emt 0:00:01]} Rf7 {
[%emt 0:00:07]} 17. exf6 {[%emt 0:00:15]} Bxf6 {[%emt 0:00:02]} 18. Nd5 {[%emt
0:00:05]} Bd8 {[%emt 0:00:01]} 19. Rfe1 {[%emt 0:00:05]} b6 {[%emt 0:00:07]}
20. Re8+ {[%emt 0:00:06]} Kg7 {[%emt 0:00:01]} 21. Nd4 {[%emt 0:00:29]} Bd7 {
[%emt 0:00:13]} 22. Ne6+ {[%emt 0:00:08]} Kh6 {[%emt 0:00:09]} 23. Nxd8 {[%emt
0:00:18]} Rxd8 {[%emt 0:00:05]} 24. Rxd8 {[%emt 0:00:09]} Nxd8 {[%emt 0:00:01]}
25. Bd4 {[%emt 0:00:04]} Ne6 {[%emt 0:00:11]} 26. Bc3 {[%emt 0:00:03]} Bxa4 {
[%emt 0:00:01]} 27. Re1 {[%emt 0:00:04]} Nc5 {[%emt 0:00:06]} 28. h4 {[%emt 0:
00:13]} Bxc2 {[%emt 0:00:04]} 29. Ne7 {[%emt 0:00:02]} Nd3 {[%emt 0:00:48]} 30.
Ng8+ {[%emt 0:00:06]} Kh5 {[%emt 0:00:01]} 31. Re7 {[%emt 0:00:22]} Rxf2 {
[%emt 0:00:20]} 32. Bh3 {[%emt 0:00:03]} h6 {[%emt 0:00:07]} 33. Rh7 {[%emt 0:
00:03]} 1-0

[Event "Norway Chess 2015 Blitz"]
[Site "Stavanger"]
[Date "2015.06.15"]
[Round "8"]
[White "Giri, Anish"]
[Black "Vachier-Lagrave, Maxime"]
[Result "1/2-1/2"]
[ECO "D71"]
[WhiteElo "2771"]
[BlackElo "2886"]
[Annotator ""]
[PlyCount "92"]
[EventDate "2015.??.??"]
[EventCountry "NOR"]
[TimeControl "180+2"]

1. d4 {[%emt 0:00:00]} Nf6 2. c4 g6 {[%emt 0:00:02]} 3. g3 {[%emt 0:00:02]} Bg7
{[%emt 0:00:04]} 4. Bg2 {[%emt 0:00:02]} O-O {[%emt 0:00:02]} 5. Nc3 {[%emt 0:
00:01]} Nc6 {[%emt 0:00:06]} 6. Nf3 {[%emt 0:00:01]} d5 {[%emt 0:00:02]} 7.
cxd5 {[%emt 0:00:03]} Nxd5 {[%emt 0:00:01]} 8. O-O {[%emt 0:00:03]} Bf5 {[%emt
0:00:01]} 9. Nd2 {[%emt 0:00:09]} Ndb4 {[%emt 0:00:04]} 10. d5 {[%emt 0:00:06]}
Bc2 {[%emt 0:00:09]} 11. Qe1 {[%emt 0:00:02]} Ne5 {[%emt 0:00:05]} 12. a3 {
[%emt 0:00:13]} Na6 {[%emt 0:00:01]} 13. Nf3 {[%emt 0:00:14]} Nc4 {[%emt 0:00:
30]} 14. Bf4 {[%emt 0:00:24]} c6 {[%emt 0:00:14]} 15. Qc1 {[%emt 0:00:08]} Bb3
{[%emt 0:00:01]} 16. dxc6 {[%emt 0:00:05]} bxc6 {[%emt 0:00:02]} 17. Nd2 {
[%emt 0:00:03]} Nxd2 {[%emt 0:00:03]} 18. Qxd2 {[%emt 0:00:03]} Qxd2 {[%emt 0:
00:09]} 19. Bxd2 {[%emt 0:00:02]} Rab8 {[%emt 0:00:48]} 20. Bxc6 {[%emt 0:00:
26]} Rfc8 {[%emt 0:00:03]} 21. Bf3 {[%emt 0:00:16]} Nc5 {[%emt 0:00:10]} 22.
Rac1 {[%emt 0:00:25]} Bc4 {[%emt 0:00:12]} 23. Be3 {[%emt 0:00:20]} Nb3 {[%emt
0:00:07]} 24. Rcd1 {[%emt 0:00:07]} Rc7 {[%emt 0:00:15]} 25. Nd5 {[%emt 0:00:
11]} Bxd5 {[%emt 0:00:01]} 26. Bxd5 {[%emt 0:00:03]} Be5 {[%emt 0:00:07]} 27.
Bh6 {[%emt 0:00:05]} Nd4 {[%emt 0:00:04]} 28. e3 {[%emt 0:00:03]} Nf5 {[%emt 0:
00:01]} 29. Bf4 {[%emt 0:00:03]} Bxf4 {[%emt 0:00:01]} 30. exf4 {[%emt 0:00:03]
} Rxb2 {[%emt 0:00:02]} 31. Rc1 {[%emt 0:00:02]} Rxc1 32. Rxc1 {[%emt 0:00:01]}
e6 {[%emt 0:00:17]} 33. Be4 {[%emt 0:00:05]} Nd6 {[%emt 0:00:03]} 34. Bc6 {
[%emt 0:00:07]} Ra2 {[%emt 0:00:04]} 35. a4 {[%emt 0:00:01]} Rd2 {[%emt 0:00:
02]} 36. Rc5 {[%emt 0:00:03]} Kg7 {[%emt 0:00:09]} 37. Ra5 {[%emt 0:00:05]} Rc2
{[%emt 0:00:01]} 38. Ra6 {[%emt 0:00:01]} h5 {[%emt 0:00:05]} 39. Bf3 {[%emt 0:
00:05]} Nf5 {[%emt 0:00:06]} 40. Rxa7 {[%emt 0:00:02]} Ra2 {[%emt 0:00:01]} 41.
h4 {[%emt 0:00:03]} Ra1+ {[%emt 0:00:01]} 42. Kg2 {[%emt 0:00:01]} Ra2 {[%emt
0:00:01]} 43. Kg1 {[%emt 0:00:04]} Ra1+ {[%emt 0:00:02]} 44. Kg2 {[%emt 0:00:
01]} Ra2 {[%emt 0:00:00]} 45. Kg1 {[%emt 0:00:03]} Ra1+ {[%emt 0:00:03]} 46.
Kg2 {[%emt 0:00:01]} Ra2 {[%emt 0:00:01]} 1/2-1/2

[Event "Norway Chess 2015 Blitz"]
[Site "Stavanger"]
[Date "2015.06.15"]
[Round "8"]
[White "Grischuk, Alexander"]
[Black "Carlsen, Magnus"]
[Result "1-0"]
[ECO "A81"]
[WhiteElo "2839"]
[BlackElo "2933"]
[Annotator ""]
[PlyCount "107"]
[EventDate "2015.??.??"]
[EventCountry "NOR"]
[TimeControl "180+2"]

1. d4 {[%emt 0:00:00]} f5 {[%emt 0:00:00]} 2. g3 {[%emt 0:00:00]} e6 {[%emt 0:
00:01]} 3. Bg2 {[%emt 0:00:02]} Nf6 {[%emt 0:00:01]} 4. c4 {[%emt 0:00:04]} c5
{[%emt 0:00:01]} 5. d5 {[%emt 0:00:07]} exd5 {[%emt 0:00:02]} 6. cxd5 {[%emt 0:
00:04]} d6 {[%emt 0:00:01]} 7. Nc3 {[%emt 0:00:02]} Be7 {[%emt 0:00:02]} 8. Nh3
{[%emt 0:00:03]} Na6 {[%emt 0:00:01]} 9. Nf4 {[%emt 0:00:07]} Nc7 {[%emt 0:00:
01]} 10. a4 {[%emt 0:00:01]} O-O {[%emt 0:00:02]} 11. O-O {[%emt 0:00:03]} Ng4
{[%emt 0:00:09]} 12. Rb1 {[%emt 0:00:04]} Bf6 {[%emt 0:00:10]} 13. Qc2 {[%emt
0:00:01]} Qe8 {[%emt 0:00:33]} 14. b4 {[%emt 0:00:10]} cxb4 {[%emt 0:00:19]}
15. Rxb4 {[%emt 0:00:02]} Na6 {[%emt 0:00:30]} 16. Rb1 {[%emt 0:00:09]} Bd7 {
[%emt 0:00:02]} 17. Nb5 {[%emt 0:00:13]} Rc8 {[%emt 0:00:29]} 18. Qa2 {[%emt 0:
00:01]} Bxb5 {[%emt 0:00:01]} 19. axb5 {[%emt 0:00:01]} Nc5 {[%emt 0:00:01]}
20. Ne6 {[%emt 0:00:07]} Ne4 {[%emt 0:00:11]} 21. Bd2 {[%emt 0:01:18]} Qh5 {
[%emt 0:00:16]} 22. h3 {[%emt 0:00:04]} Ne5 {[%emt 0:00:07]} 23. Bb4 {[%emt 0:
00:22]} Rfe8 {[%emt 0:00:05]} 24. Rbc1 {[%emt 0:00:04]} h6 {[%emt 0:00:09]} 25.
Nf4 {[%emt 0:00:04]} Qf7 {[%emt 0:00:01]} 26. Bxe4 {[%emt 0:00:03]} fxe4 {
[%emt 0:00:01]} 27. Bxd6 {[%emt 0:00:01]} e3 {[%emt 0:00:05]} 28. fxe3 {[%emt
0:00:06]} Nd7 {[%emt 0:00:05]} 29. Rxc8 Rxc8 30. Qxa7 {[%emt 0:00:09]} Qe8 {
[%emt 0:00:02]} 31. Ne6 {[%emt 0:00:04]} Rc2 {[%emt 0:00:12]} 32. Rf2 {[%emt 0:
00:21]} Rc1+ {[%emt 0:00:02]} 33. Kh2 {[%emt 0:00:01]} Qg6 {[%emt 0:00:03]} 34.
Qa8+ {[%emt 0:00:02]} Kh7 {[%emt 0:00:01]} 35. Qa3 {[%emt 0:00:01]} Rd1 {[%emt
0:00:03]} 36. Qb3 {[%emt 0:00:02]} Rd2 {[%emt 0:00:06]} 37. Qc4 {[%emt 0:00:06]
} Qb1 {[%emt 0:00:01]} 38. Qg4 {[%emt 0:00:01]} Rd1 {[%emt 0:00:02]} 39. Qf5+ {
[%emt 0:00:01]} Qxf5 {[%emt 0:00:01]} 40. Rxf5 {[%emt 0:00:01]} g6 {[%emt 0:00:
01]} 41. Rf2 {[%emt 0:00:06]} Rxd5 {[%emt 0:00:01]} 42. Nf8+ {[%emt 0:00:01]}
Nxf8 {[%emt 0:00:04]} 43. Rxf6 {[%emt 0:00:02]} Kg7 {[%emt 0:00:01]} 44. Rxf8 {
[%emt 0:00:03]} Rxd6 {[%emt 0:00:00]} 45. Rc8 {[%emt 0:00:01]} Rd2 {[%emt 0:00:
04]} 46. Kg2 {[%emt 0:00:01]} Kf6 {[%emt 0:00:03]} 47. Rc7 {[%emt 0:00:01]}
Rxe2+ {[%emt 0:00:01]} 48. Kf3 {[%emt 0:00:01]} Rh2 {[%emt 0:00:01]} 49. h4 {
[%emt 0:00:01]} Rb2 {[%emt 0:00:01]} 50. Rxb7 {[%emt 0:00:01]} Rb4 {[%emt 0:00:
00]} 51. Rb8 {[%emt 0:00:01]} g5 {[%emt 0:00:01]} 52. hxg5+ hxg5 53. b6 {[%emt
0:00:03]} g4+ {[%emt 0:00:01]} 54. Ke2 {[%emt 0:00:01]} 1-0

[Event "Norway Chess 2015 Blitz"]
[Site "Stavanger"]
[Date "2015.06.15"]
[Round "8"]
[White "Hammer, Jon Ludvig"]
[Black "Caruana, Fabiano"]
[Result "1-0"]
[ECO "B41"]
[WhiteElo "2648"]
[BlackElo "2679"]
[Annotator ""]
[PlyCount "101"]
[EventDate "2015.??.??"]
[EventCountry "NOR"]
[TimeControl "180+2"]

1. e4 {[%emt 0:00:00]} c5 {[%emt 0:00:00]} 2. Nf3 {[%emt 0:00:00]} e6 {[%emt 0:
00:00]} 3. d4 {[%emt 0:00:00]} cxd4 {[%emt 0:00:01]} 4. Nxd4 {[%emt 0:00:01]}
a6 {[%emt 0:00:01]} 5. c4 {[%emt 0:00:03]} Nf6 {[%emt 0:00:04]} 6. Nc3 {[%emt
0:00:02]} Bb4 {[%emt 0:00:04]} 7. Qd3 {[%emt 0:00:07]} O-O {[%emt 0:00:02]} 8.
Be2 {[%emt 0:00:13]} Bxc3+ {[%emt 0:00:05]} 9. bxc3 {[%emt 0:00:03]} d6 {[%emt
0:00:03]} 10. Ba3 {[%emt 0:00:06]} Re8 {[%emt 0:00:11]} 11. O-O {[%emt 0:00:10]
} b6 {[%emt 0:00:20]} 12. Nf3 {[%emt 0:00:02]} Bb7 {[%emt 0:00:05]} 13. Nd2 {
[%emt 0:00:01]} d5 {[%emt 0:00:38]} 14. e5 {[%emt 0:00:02]} Nfd7 {[%emt 0:00:
05]} 15. f4 {[%emt 0:00:01]} Nc5 {[%emt 0:00:09]} 16. Qg3 {[%emt 0:00:03]} Nbd7
{[%emt 0:00:06]} 17. Rad1 {[%emt 0:00:04]} Qc7 {[%emt 0:00:02]} 18. Kh1 {[%emt
0:00:10]} Nf8 {[%emt 0:00:05]} 19. h4 {[%emt 0:00:01]} h6 {[%emt 0:00:06]} 20.
h5 {[%emt 0:00:01]} Rad8 {[%emt 0:00:02]} 21. Qe3 {[%emt 0:00:03]} Rd7 {[%emt
0:00:06]} 22. Nb3 {[%emt 0:00:10]} Ne4 {[%emt 0:00:06]} 23. cxd5 {[%emt 0:00:
03]} exd5 {[%emt 0:00:06]} 24. Nd4 {[%emt 0:00:23]} Ne6 {[%emt 0:00:02]} 25.
Rc1 {[%emt 0:00:16]} Qd8 {[%emt 0:00:34]} 26. Bd3 {[%emt 0:00:31]} Qh4+ {[%emt
0:00:05]} 27. Kg1 {[%emt 0:00:00]} Qxh5 {[%emt 0:00:08]} 28. Bxe4 {[%emt 0:00:
23]} dxe4 {[%emt 0:00:01]} 29. f5 {[%emt 0:00:01]} Ng5 {[%emt 0:00:10]} 30. Qf4
{[%emt 0:00:11]} e3 {[%emt 0:00:06]} 31. Rce1 {[%emt 0:00:06]} Bd5 {[%emt 0:00:
11]} 32. Rxe3 {[%emt 0:00:05]} Bc4 {[%emt 0:00:02]} 33. Rfe1 {[%emt 0:00:04]}
Rdd8 {[%emt 0:00:05]} 34. Rg3 {[%emt 0:00:05]} Rc8 {[%emt 0:00:03]} 35. Nf3 {
[%emt 0:00:17]} Nxf3+ {[%emt 0:00:02]} 36. gxf3 {[%emt 0:00:01]} Bd3 {[%emt 0:
00:02]} 37. f6 {[%emt 0:00:05]} Bg6 {[%emt 0:00:01]} 38. fxg7 {[%emt 0:00:08]}
Re6 {[%emt 0:00:04]} 39. Rd1 {[%emt 0:00:03]} Kxg7 {[%emt 0:00:01]} 40. Be7 {
[%emt 0:00:01]} Kh7 {[%emt 0:00:01]} 41. Bf6 {[%emt 0:00:04]} Ree8 {[%emt 0:00:
05]} 42. Rd2 {[%emt 0:00:02]} Rxc3 {[%emt 0:00:10]} 43. Rh2 {[%emt 0:00:01]}
Qxh2+ {[%emt 0:00:02]} 44. Kxh2 {[%emt 0:00:01]} Rec8 {[%emt 0:00:01]} 45. Rh3
{[%emt 0:00:02]} Rc2+ {[%emt 0:00:01]} 46. Kg3 h5 47. Qg5 {[%emt 0:00:03]} Rg8
{[%emt 0:00:01]} 48. Kf4 {[%emt 0:00:04]} Rc4+ {[%emt 0:00:01]} 49. Ke3 {[%emt
0:00:02]} Rc3+ {[%emt 0:00:01]} 50. Kf2 {[%emt 0:00:06]} Rc2+ {[%emt 0:00:01]}
51. Ke1 {[%emt 0:00:01]} 1-0

[Event "Norway Chess 2015 Blitz"]
[Site "Stavanger"]
[Date "2015.06.15"]
[Round "8"]
[White "Nakamura, Hikaru"]
[Black "Aronian, Levon"]
[Result "1-0"]
[ECO "A20"]
[WhiteElo "2883"]
[BlackElo "2816"]
[Annotator ""]
[PlyCount "167"]
[EventDate "2015.??.??"]
[EventCountry "NOR"]
[TimeControl "180+2"]

1. c4 {[%emt 0:00:00]} e5 {[%emt 0:00:02]} 2. g3 {[%emt 0:00:01]} c6 {[%emt 0:
00:07]} 3. Nf3 {[%emt 0:00:09]} e4 {[%emt 0:00:02]} 4. Nd4 {[%emt 0:00:01]} d5
{[%emt 0:00:12]} 5. cxd5 {[%emt 0:00:17]} Qxd5 {[%emt 0:00:13]} 6. Nc2 {[%emt
0:00:03]} Nf6 {[%emt 0:00:16]} 7. Nc3 {[%emt 0:00:06]} Qh5 {[%emt 0:00:02]} 8.
h3 {[%emt 0:00:14]} Na6 {[%emt 0:00:07]} 9. Bg2 {[%emt 0:00:06]} Qg6 {[%emt 0:
00:01]} 10. b3 {[%emt 0:00:26]} Bc5 {[%emt 0:00:16]} 11. Bb2 {[%emt 0:00:07]}
O-O {[%emt 0:00:03]} 12. Na4 {[%emt 0:00:17]} Be7 {[%emt 0:00:01]} 13. Ne3 {
[%emt 0:00:03]} Nd5 {[%emt 0:00:01]} 14. Nxd5 {[%emt 0:00:30]} cxd5 {[%emt 0:
00:01]} 15. O-O {[%emt 0:00:03]} Be6 {[%emt 0:00:16]} 16. Nc3 {[%emt 0:00:09]}
Bf6 {[%emt 0:00:30]} 17. Rc1 {[%emt 0:00:10]} Rac8 {[%emt 0:00:06]} 18. Ba3 {
[%emt 0:00:01]} Rfd8 {[%emt 0:00:40]} 19. Nb5 {[%emt 0:00:01]} Be5 {[%emt 0:00:
00]} 20. d4 {[%emt 0:00:16]} Bb8 {[%emt 0:00:12]} 21. Qd2 {[%emt 0:00:01]} Bd7
{[%emt 0:00:01]} 22. Nc3 {[%emt 0:00:03]} Bc6 {[%emt 0:00:03]} 23. Qe3 {[%emt
0:00:15]} Re8 {[%emt 0:00:04]} 24. h4 {[%emt 0:00:04]} Rcd8 {[%emt 0:00:06]}
25. Qg5 {[%emt 0:00:06]} Qe6 {[%emt 0:00:13]} 26. Nd1 {[%emt 0:00:01]} Nc7 {
[%emt 0:00:05]} 27. Ne3 {[%emt 0:00:03]} h6 {[%emt 0:00:04]} 28. Qf5 {[%emt 0:
00:01]} Nb5 {[%emt 0:00:01]} 29. Bb2 {[%emt 0:00:06]} Nd6 {[%emt 0:00:04]} 30.
Qxe6 {[%emt 0:00:01]} Rxe6 {[%emt 0:00:01]} 31. Bh3 {[%emt 0:00:03]} Ree8 {
[%emt 0:00:01]} 32. a4 {[%emt 0:00:02]} g6 {[%emt 0:00:02]} 33. Ng4 {[%emt 0:
00:01]} Kg7 {[%emt 0:00:06]} 34. Ne5 {[%emt 0:00:02]} e3 {[%emt 0:00:03]} 35.
f3 {[%emt 0:00:05]} Nf5 {[%emt 0:00:03]} 36. Bxf5 {[%emt 0:00:03]} gxf5 {[%emt
0:00:02]} 37. Nxc6 {[%emt 0:00:03]} bxc6 {[%emt 0:00:01]} 38. f4 {[%emt 0:00:
03]} Re6 {[%emt 0:00:02]} 39. Kg2 {[%emt 0:00:01]} Bc7 {[%emt 0:00:03]} 40.
Rfd1 {[%emt 0:00:00]} Rb8 {[%emt 0:00:02]} 41. Rd3 {[%emt 0:00:01]} Ba5 {[%emt
0:00:00]} 42. Bc3 {[%emt 0:00:01]} Bxc3 {[%emt 0:00:05]} 43. Rcxc3 {[%emt 0:00:
01]} Rb4 {[%emt 0:00:01]} 44. Kf3 {[%emt 0:00:04]} Kf6 {[%emt 0:00:02]} 45. Rc5
{[%emt 0:00:02]} Ke7 {[%emt 0:00:02]} 46. Ra5 {[%emt 0:00:01]} Rb7 {[%emt 0:00:
01]} 47. b4 {[%emt 0:00:01]} Rxb4 {[%emt 0:00:03]} 48. Rxa7+ {[%emt 0:00:01]}
Kf6 {[%emt 0:00:01]} 49. Rd1 {[%emt 0:00:05]} Re4 {[%emt 0:00:02]} 50. Ra6 {
[%emt 0:00:01]} Rc4 {[%emt 0:00:01]} 51. a5 {[%emt 0:00:01]} Ke6 {[%emt 0:00:
03]} 52. Ra8 {[%emt 0:00:01]} Rexd4 {[%emt 0:00:02]} 53. Rxd4 {[%emt 0:00:01]}
Rxd4 {[%emt 0:00:00]} 54. Rh8 {[%emt 0:00:01]} Ra4 {[%emt 0:00:04]} 55. Rxh6+ {
[%emt 0:00:01]} Kd7 {[%emt 0:00:01]} 56. Rf6 {[%emt 0:00:01]} Rxa5 {[%emt 0:00:
03]} 57. Rxf7+ {[%emt 0:00:01]} Ke6 {[%emt 0:00:00]} 58. Rc7 {[%emt 0:00:01]}
Kd6 {[%emt 0:00:01]} 59. Rc8 {[%emt 0:00:02]} d4 {[%emt 0:00:01]} 60. Rd8+ {
[%emt 0:00:03]} Kc5 {[%emt 0:00:01]} 61. h5 {[%emt 0:00:01]} Ra1 {[%emt 0:00:
01]} 62. h6 {[%emt 0:00:07]} Rh1 {[%emt 0:00:03]} 63. Rf8 {[%emt 0:00:09]} Rxh6
{[%emt 0:00:02]} 64. Rxf5+ {[%emt 0:00:01]} Kc4 {[%emt 0:00:01]} 65. Ra5 {
[%emt 0:00:01]} Rh2 {[%emt 0:00:02]} 66. f5 {[%emt 0:00:11]} c5 {[%emt 0:00:02]
} 67. Ra2 {[%emt 0:00:01]} Kb3 {[%emt 0:00:02]} 68. Ra5 {[%emt 0:00:01]} Kb4 {
[%emt 0:00:02]} 69. Ra2 {[%emt 0:00:01]} c4 {[%emt 0:00:03]} 70. Ke4 {[%emt 0:
00:01]} d3 {[%emt 0:00:04]} 71. Kxe3 {[%emt 0:00:03]} Kb3 {[%emt 0:00:01]} 72.
Rd2 {[%emt 0:00:03]} Kc3 {[%emt 0:00:06]} 73. f6 {[%emt 0:00:01]} Rg2 {[%emt 0:
00:03]} 74. f7 {[%emt 0:00:03]} Rxg3+ {[%emt 0:00:01]} 75. Kf2 {[%emt 0:00:01]}
Kxd2 76. f8=Q {[%emt 0:00:04]} Rg6 {[%emt 0:00:07]} 77. Qf4+ {[%emt 0:00:02]}
Kc3 {[%emt 0:00:01]} 78. Qc1+ {[%emt 0:00:02]} Kd4 {[%emt 0:00:02]} 79. Qb2+ {
[%emt 0:00:03]} Ke4 {[%emt 0:00:02]} 80. exd3+ {[%emt 0:00:02]} cxd3 {[%emt 0:
00:02]} 81. Qb4+ {[%emt 0:00:01]} Kd5 {[%emt 0:00:01]} 82. Ke3 {[%emt 0:00:01]}
Rg3+ {[%emt 0:00:02]} 83. Kf4 {[%emt 0:00:01]} Rg7 {[%emt 0:00:02]} 84. Qe4+ {
[%emt 0:00:02]} 1-0